Cogmind - Beta 13 @@@ ROGUE MODE // 2024.06.08 @ 11:56:34 Player: .fresh Result: Escaped! Performance ------------- Evolutions (9) 4500 Regions Visited (20) 4000 Robots Destroyed (82) 410 Value Destroyed (1851) 1851 Prototype IDs (87) 1740 Alien Tech Used (0) 0 Bonus (3377) 3377 TOTAL SCORE: 15878 Bonus ------- Follower Combat Kills 77 Aligned with FarCom 300 Win 3000 Cogmind --------- Core Integrity 1513/1600 Matter 61/300 Energy 21/150 System Corruption 16% Temperature Warm (136) Movement Flying (18) Location To Epsilon Eridani Parts ------- > --- POWER (3) -------- Backup Power VII (fused) Backup Power VII Micro Antimatter Reactor > --- PROPULSION (6) --- Advanced Surge Thruster Advanced Surge Thruster Cooled Field Propulsion Drive Q-thruster Q-thruster Cooled Q-thruster > --- UTILITY (13) ----- Advanced Heat Sink (fused) Advanced Gravity Neutralizer Advanced Visual Processing Unit Experimental Terrain Scanner Experimental Terrain Scan Processor Experimental Transmission Jammer Advanced ECM Suite Improved Hacking Suite Advanced Hacking Suite Experimental Hacking Suite Experimental Hacking Suite Improved System Shield Advanced System Shield > --- WEAPON (3) ------- Enhanced Nova Cannon Nanosword > --- INVENTORY (5) ---- Light Quantum Reactor Field Propulsion Drive Field Propulsion Drive Guided Micro-nuke Launcher Peak State ------------ > --- POWER ------------ Backup Power VII Backup Power VII Micro Antimatter Reactor > --- PROPULSION ------- Advanced Surge Thruster Advanced Surge Thruster Cooled Field Propulsion Drive Q-thruster Q-thruster Cooled Q-thruster > --- UTILITY ---------- Advanced Heat Sink Advanced Gravity Neutralizer Advanced Visual Processing Unit Experimental Terrain Scanner Experimental Terrain Scan Processor Experimental Transmission Jammer Advanced ECM Suite Improved Hacking Suite Advanced Hacking Suite Experimental Hacking Suite Experimental Hacking Suite Improved System Shield Advanced System Shield > --- WEAPON ----------- Enhanced Nova Cannon Nanosword > --- INVENTORY -------- Light Quantum Reactor Field Propulsion Drive Field Propulsion Drive Guided Micro-nuke Launcher [Rating: 177] Favorites ----------- Power Backup Power VII Engine Improved Ion Engine Power Core Backup Power VII Reactor Micro Antimatter Reactor Propulsion Improved Surge Thruster Treads Light Treads Leg Potential Leg Wheel Wheel Flight Unit Improved Surge Thruster Utility Improved Hacking Suite Device Seismic Detector Storage High-capacity Storage Unit Processor Experimental Terrain Scan Processor Hackware Improved Hacking Suite Protection Improved Light Armor Plating Weapon Great Maul Energy Gun Medium Laser Energy Cannon Advanced Beam Cannon Ballistic Cannon Assault Cannon Launcher Grenade Launcher Special Weapon Improved Plasma Cutter Impact Weapon Great Maul Slashing Weapon Nanosword Piercing Weapon Kinetic Spear Special Melee Weapon Advanced Datajack Build | -11 -10 -10 -10 -9 -8 -7 -7 -7 -6 -6 -6 -5 -5 -5 -4 -4 -4 -3 -2 -1 ------- Run | Yrd Mat Min Exi Min Mat Fac Was Fac Fac Was Fac Fac Was Fac Fac Was Fac Res Res Acc Slots Evolved 18 | . . . . . 4 2 . . 2 . . 2 . . 2 . . 2 2 2 Power 2 | . . . . . . . . . . . . . . . 1 . . 1 . . Propulsion 4 | . . . . . 2 1 . . . . . 1 . . . . . . . . Utility 11 | . . . . . 2 1 . . 2 . . 1 . . 1 . . 1 2 1 Weapon 1 | . . . . . . . . . . . . . . . . . . . . 1 Parts Attached 253 | 5 23 2 5 3 35 35 5 8 15 5 17 7 . 1 3 . 29 25 17 13 Power 24 | . 6 . . . 1 3 . . 2 . 4 . . . 1 . 2 3 . 2 Engine 12 | . 6 . . . 1 2 . . . . 3 . . . . . . . . . Core 10 | . . . . . . 1 . . 2 . 1 . . . 1 . 2 2 . 1 Reactor 2 | . . . . . . . . . . . . . . . . . . 1 . 1 Propulsion 63 | 3 8 . 2 . 9 11 . . 2 3 3 1 . . . . 7 5 6 3 Treads 9 | 2 1 . . . 6 . . . . . . . . . . . . . . . Leg 10 | . 4 . 2 . 2 . . . . 1 . . . . . . . . 1 . Wheel 3 | 1 2 . . . . . . . . . . . . . . . . . . . Hover . | . . . . . . . . . . . . . . . . . . . . . Flight 41 | . 1 . . . 1 11 . . 2 2 3 1 . . . . 7 5 5 3 Utility 98 | 1 1 . 3 2 8 10 5 4 5 2 6 4 . . 2 . 14 16 7 8 Device 52 | 1 . . 2 2 6 . 4 1 . 1 2 2 . . 2 . 9 12 4 4 Storage 3 | . 1 . 1 . . 1 . . . . . . . . . . . . . . Processor 5 | . . . . . . . . . 1 . . . . . . . 1 1 . 2 Hackware 24 | . . . . . 1 6 . 2 2 . 3 1 . . . . 4 3 1 1 Protection 14 | . . . . . 1 3 1 1 2 1 1 1 . . . . . . 2 1 Artifact . | . . . . . . . . . . . . . . . . . . . . . Weapon 68 | 1 8 2 . 1 17 11 . 4 6 . 4 2 . 1 . . 6 1 4 . Energy Gun 15 | 1 6 . . . 8 . . . . . . . . . . . . . . . Energy Cannon 16 | . 1 1 . 1 1 3 . 2 2 . 1 1 . . . . 2 . 1 . Ballistic Gun . | . . . . . . . . . . . . . . . . . . . . . Ballistic Cannon 3 | . . . . . 2 . . . . . . . . . . . 1 . . . Launcher 7 | . 1 1 . . 2 2 . . . . . 1 . . . . . . . . Special Weapon 1 | . . . . . . . . . . . . . . 1 . . . . . . Impact Weapon 19 | . . . . . 4 6 . 2 4 . 2 . . . . . 1 . . . Slashing Weapon 2 | . . . . . . . . . . . 1 . . . . . . . 1 . Piercing Weapon 3 | . . . . . . . . . . . . . . . . . . 1 2 . Special Melee Weapon 2 | . . . . . . . . . . . . . . . . . 2 . . . Unidentified Prototypes 11 | . 2 . . . 1 3 . . . . 1 1 . . . . . . 2 1 Parts Lost 16 | . 2 . . . 1 2 . . 1 . . . . . . . 3 1 . 6 Power 3 | . . . . . . 1 . . 1 . . . . . . . . 1 . . Propulsion 4 | . . . . . . . . . . . . . . . . . 2 . . 2 Utility 6 | . . . . . . 1 . . . . . . . . . . 1 . . 4 Weapon 3 | . 2 . . . 1 . . . . . . . . . . . . . . . Highest Loss Streak 5 | . 1 . . . 1 2 . . 1 . . . . . . . 3 1 . 5 To Critical Strikes . | . . . . . . . . . . . . . . . . . . . . . Average Slot Usage (%) 94 | . 99 100 100 100 92 91 89 92 89 93 91 92 94 94 91 94 92 95 96 91 Engine 7 | . 14 14 14 14 8 4 7 7 1 . 4 5 5 1 . . . . . . Core 2 | . . . . . . 2 . . 4 6 1 . . 3 10 10 9 12 8 8 Treads 3 | . 14 . . . 9 . . . . . . . . . . . . . . . Leg 7 | . 4 14 17 28 20 . . . . . . . . . . . . . . . Wheel 2 | . 9 14 10 . . . . . . . . . . . . . . . . . Flight 16 | . . . . . . 38 38 38 33 33 33 35 35 35 31 31 28 28 25 24 Device 10 | . 14 14 14 14 15 . . . . . 4 5 5 5 7 10 9 9 11 16 Storage 7 | . 14 14 14 14 9 7 7 7 6 6 . . . . . . . . . . Hackware 16 | . . . . . 7 19 23 28 28 33 33 39 41 41 36 36 31 31 31 25 Protection 2 | . . . . . 3 9 4 2 6 6 4 . . . . . . . . . Energy Gun 6 | . 24 14 14 8 9 . . . . . . . . . . . . . . . Energy Cannon 5 | . 3 14 14 19 2 2 . . . . . 3 5 5 5 5 3 4 4 4 Impact Weapon 2 | . . . . . 2 4 7 6 5 6 5 1 . . . . 2 . . . Naked Turns . | . . . . . . . . . . . . . . . . . . . . . Heaviest Build 60 | 13 34 34 54 57 60 27 27 27 27 23 23 23 23 23 20 20 24 30 50 37 Greatest Support 75 | 20 40 10 60 60 75 28 28 32 28 28 24 24 24 24 34 24 27 33 50 54 Greatest Overweight (x) 3 | 1 3 3 3 . . 1 . . . . . . . . . . . . 1 . Average Overweight (x) . | . 1 3 2 . . . . . . . . . . . . . . . . . Largest Inventory Capacity 20 | 8 15 15 20 20 20 20 10 10 10 10 10 5 5 5 5 5 5 5 5 5 Average Capacity 12 | 8 14 15 15 20 20 10 10 10 10 10 5 5 5 5 5 5 5 5 5 5 Most Carried 20 | 6 15 15 15 19 20 19 10 10 10 10 10 5 5 5 5 5 5 5 5 5 Average Carried 11 | 6 11 14 14 15 19 9 10 9 9 9 5 4 5 5 4 5 4 4 4 4 Final Capacity 20 | 8 15 15 20 20 20 10 10 10 10 10 5 5 5 5 5 5 5 5 5 5 Final Carried 19 | 6 15 15 14 19 19 10 10 10 10 10 5 5 5 5 5 5 5 5 5 5 Class Distribution -------------------- 49% | Mutant 24% | Hacker-Sprinter 16% | Wizard-Scout 5% | Wizard-Ninja Dominant Class ---------------- Mutant | -10/Materials Mutant | -10/Mines Mutant | -10/Exiles Mutant | -9/Mines Mutant | -8/Materials Hacker-Sprinter | -7/Factory Hacker-Sprinter | -7/Waste Hacker-Sprinter | -7/Factory Hacker-Sprinter | -6/Factory Hacker-Sprinter | -6/Waste Hacker-Sprinter | -6/Factory Wizard-Sprinter | -5/Factory Wizard-Sprinter | -5/Waste Wizard-Sprinter | -5/Factory Wizard-Scout | -4/Factory Wizard-Scout | -4/Waste Wizard-Scout | -4/Factory Wizard-Scout | -3/Research Wizard-Scout | -2/Research Wizard-Ninja | -1/Access Resources | -11 -10 -10 -10 -9 -8 -7 -7 -7 -6 -6 -6 -5 -5 -5 -4 -4 -4 -3 -2 -1 ----------- Run | Yrd Mat Min Exi Min Mat Fac Was Fac Fac Was Fac Fac Was Fac Fac Was Fac Res Res Acc Matter Collected 2725 | 210 260 114 . 80 476 272 153 69 116 . 151 . . . 156 . 97 280 211 80 Remotely . | . . . . . . . . . . . . . . . . . . . . . Salvage Created 2836 | 103 667 18 . . 887 181 . 166 208 . . . . . . . 35 280 211 80 Parts 121 | 3 38 4 . . 46 7 . 3 . . . . . . . . 1 4 10 5 Haulers Intercepted 11 | . 1 . . . 5 1 . 1 1 . . . . . . . . 1 1 . Recyclers Shooed 2 | 1 . . . . . 1 . . . . . . . . . . . . . . Parts Field Recycled 5 | . . . . . . . . . . . . . . . . . . . 5 . Retrieved Matter 46 | . . . . . . . . . . . . . . . . . . . 46 . Parts Self-Destructed . | . . . . . . . . . . . . . . . . . . . . . Prevented . | . . . . . . . . . . . . . . . . . . . . . Kills | -11 -10 -10 -10 -9 -8 -7 -7 -7 -6 -6 -6 -5 -5 -5 -4 -4 -4 -3 -2 -1 ------- Run | Yrd Mat Min Exi Min Mat Fac Was Fac Fac Was Fac Fac Was Fac Fac Was Fac Res Res Acc Combat Hostiles Destroyed 37 | . 14 2 . . 17 4 . . . . . . . . . . . . . . Guns 16 | . 8 . . . 8 . . . . . . . . . . . . . . . Cannons 4 | . . 1 . . 3 . . . . . . . . . . . . . . . AOE 17 | . 6 1 . . 6 4 . . . . . . . . . . . . . . Classes Destroyed 13 | 2 6 . . . 5 . . . . . . . . . . . . . . . Worker 9 | . 2 1 . . 1 . . . . . . . . . . . . 1 4 . Builder 1 | . 1 . . . . . . . . . . . . . . . . . . . Tunneler 2 | 1 . . . . 1 . . . . . . . . . . . . . . . Hauler 11 | . 1 . . . 5 1 . 1 1 . . . . . . . . 1 1 . Recycler 4 | 1 . . . . 1 1 . . . . . . . . . . . 1 . . Mechanic 1 | . . . . . 1 . . . . . . . . . . . . . . . Operator 3 | . . . . . 1 . . . 2 . . . . . . . . . . . Watcher 14 | . 1 . . . 2 . . 5 2 . . . . . . . 1 1 . 2 Swarmer 15 | . 3 2 . . 6 4 . . . . . . . . . . . . . . Grunt 16 | . 11 . . . 5 . . . . . . . . . . . . . . . Duelist 1 | . . . . . 1 . . . . . . . . . . . . . . . Sentry 4 | . . . . . 4 . . . . . . . . . . . . . . . Hunter 1 | . . . . . 1 . . . . . . . . . . . . . . . Best Kill Streak 7 | 1 7 3 . . 4 4 . 2 2 . . . . . . . 1 1 3 1 Combat Bots Only 6 | . 6 2 . . 3 4 . . . . . . . . . . . . . . Max Kills in Single Turn 4 | 1 4 2 . . 2 3 . 1 1 . . . . . . . 1 1 1 1 Gunslinging . | . . . . . . . . . . . . . . . . . . . . . Exploded 3 | . 3 1 . . 2 3 . . . . . . . . . . . . . . Melee . | . . . . . . . . . . . . . . . . . . . . . Uniques/NPCs Destroyed . | . . . . . . . . . . . . . . . . . . . . . Combat | -11 -10 -10 -10 -9 -8 -7 -7 -7 -6 -6 -6 -5 -5 -5 -4 -4 -4 -3 -2 -1 -------- Run | Yrd Mat Min Exi Min Mat Fac Was Fac Fac Was Fac Fac Was Fac Fac Was Fac Res Res Acc Hostile Shots Fired 285 | . 69 7 . . 46 18 . 49 24 . . . . . 4 . 11 3 12 42 Missed 123 | . 16 1 . . 11 12 . 35 15 . . . . . 1 . 4 1 5 22 Damage Taken 3082 | . 628 44 . . 493 336 . 127 152 . . . . . 29 . 348 42 165 718 Core 429 | . 112 17 . . 47 40 . 49 38 . . . . . . . 16 . 23 87 Absorbed by Shields . | . . . . . . . . . . . . . . . . . . . . . Redirected to Shielding 148 | . . . . . . 13 . . . . . . . . . . . . . 135 Regen/Repaired (Parts) 296 | . . . . . . 76 . . 39 . . . . . . . 181 . . . Core Remaining (%) 91 | 100 . . . 48 91 . . 87 . . 95 . . 100 . . 98 100 98 94 Volleys Fired 307 | 15 49 5 . . 57 24 . 4 11 . 1 8 . 7 20 . 22 53 6 25 Largest 2 | 1 2 2 . . 2 1 . 1 1 . 1 1 . 1 1 . 1 1 1 1 Hottest 160 | 40 100 118 . . 160 30 . 30 30 . 30 90 . 90 90 . 105 105 105 120 Shots Fired 391 | 15 80 8 . . 107 24 . 4 11 . 1 8 . 7 20 . 22 54 6 24 Gun 167 | 15 77 3 . . 72 . . . . . . . . . . . . . . . Cannon 210 | . . 3 . . 28 22 . 4 11 . 1 8 . 7 20 . 22 54 6 24 Launcher 14 | . 3 2 . . 7 2 . . . . . . . . . . . . . . Special . | . . . . . . . . . . . . . . . . . . . . . Kinetic 13 | . . . . . 13 . . . . . . . . . . . . . . . Thermal 315 | 15 28 6 . . 87 22 . 4 11 . 1 8 . 7 20 . 22 54 6 24 Explosive 14 | . 3 2 . . 7 2 . . . . . . . . . . . . . . Electromagnetic 49 | . 49 . . . . . . . . . . . . . . . . . . . Robot Hit Streak 23 | 9 12 5 . . 23 3 . . . . . . . . . . 1 5 . . Robot Miss Streak 5 | 1 3 1 . . 4 . . . . . . . . 2 3 . 5 1 . . Penetration Max . | . . . . . . . . . . . . . . . . . . . . . Secondary Targets 1 | . . . . . 1 . . . . . . . . . . . . . . . Max Gunslinging Chain 1 | . . . . . 1 . . . . . . . . . . . . . . . Shots Hit Robots 185 | 13 56 2 . . 76 3 . 7 7 . . . . . . . 1 11 5 4 Core Hits 113 | 3 32 4 . . 55 8 . 1 . . . . . . . . . 3 4 3 Critical Kills 2 | . . . . . . 1 . . . . . . . . . . 1 . . . Critical Parts Destroyed 6 | . . . . . . . . 2 2 . . . . . . . . 2 . . Critical Strikes 8 | . . . . . . 1 . 2 2 . . . . . . . 1 2 . . Meltdown 1 | . . . . . . . . . . . . . . . . . 1 . . . Smash 7 | . . . . . . 1 . 2 2 . . . . . . . . 2 . . Melee Attacks 196 | . . . . . 13 13 . 44 20 . 18 3 . . . . 10 13 33 29 Impact 121 | . . . . . 13 13 . 44 20 . 15 3 . . . . 10 3 . . Slashing 36 | . . . . . . . . . . . 3 . . . . . . . 4 29 Piercing 39 | . . . . . . . . . . . . . . . . . . 10 29 . Sneak Attacks 10 | . . . . . . 2 . 1 1 . . . . . . . . 1 5 . Combat Hostiles . | . . . . . . . . . . . . . . . . . . . . . Follow-up Attacks . | . . . . . . . . . . . . . . . . . . . . . Damage Inflicted 6464 | 146 1056 227 . 9 2266 431 . 527 418 . . . . . . . 33 523 547 281 Guns 2211 | 146 721 . . . 1344 . . . . . . . . . . . . . . . Cannons 804 | . . 21 . . 422 . . . . . . . . . . . 33 328 . . Explosions 1264 | . 335 206 . . 493 230 . . . . . . . . . . . . . . Melee 2169 | . . . . . . 201 . 527 418 . . . . . . . . 195 547 281 Ramming 16 | . . . . 9 7 . . . . . . . . . . . . . . . Kinetic 256 | . . . . . 256 . . . . . . . . . . . . . . . Thermal 2370 | 146 332 21 . . 1510 . . . . . . . . . . . 33 328 . . Explosive 1161 | . 232 206 . . 493 230 . . . . . . . . . . . . . . Electromagnetic 492 | . 492 . . . . . . . . . . . . . . . . . . . Impact 1341 | . . . . . . 201 . 527 418 . . . . . . . . 195 . . Slashing 281 | . . . . . . . . . . . . . . . . . . . . 281 Piercing 547 | . . . . . . . . . . . . . . . . . . . 547 . Highest Corruption 16 | . . . . . . . . . . . . . . . . . . 5 1 16 Average Corruption 7 | . . . . . . . . . . . . . . . . . . 5 1 13 Corruption Purged . | . . . . . . . . . . . . . . . . . . . . . Corruption Blocked . | . . . . . . . . . . . . . . . . . . . . . Effects 33 | . . . . . . . . . . . . . . . . . . 12 . 21 Message Errors 2 | . . . . . . . . . . . . . . . . . . . . 2 Matter Fused 11 | . . . . . . . . . . . . . . . . . . 4 . 7 Heat Flow Errors 3 | . . . . . . . . . . . . . . . . . . 1 . 2 Energy Discharges 4 | . . . . . . . . . . . . . . . . . . 2 . 2 Parts Rejected 3 | . . . . . . . . . . . . . . . . . . 2 . 1 Parts Fused 2 | . . . . . . . . . . . . . . . . . . . . 2 Data Loss (minor) 2 | . . . . . . . . . . . . . . . . . . . . 2 Data Loss (major) 1 | . . . . . . . . . . . . . . . . . . . . 1 Misfires 2 | . . . . . . . . . . . . . . . . . . 2 . . Misdirections 1 | . . . . . . . . . . . . . . . . . . . . 1 Weapon Failures 2 | . . . . . . . . . . . . . . . . . . 1 . 1 Overload Shots . | . . . . . . . . . . . . . . . . . . . . . Overflow Damage 991 | . 1 1 . . 69 72 . 218 284 . . . . . . . . 214 77 55 Projectiles 19 | . . . . . . . . . . . . . . . . . . 19 . . Explosions 71 | . 1 1 . . 69 . . . . . . . . . . . . . . . Melee 901 | . . . . . . 72 . 218 284 . . . . . . . . 195 77 55 Knockbacks 10 | . . . . . 4 1 . 2 2 . . . . . . . . 1 . . Impact 6 | . . . . . . 1 . 2 2 . . . . . . . . 1 . . Kinetic 4 | . . . . . 4 . . . . . . . . . . . . . . . Secondary . | . . . . . . . . . . . . . . . . . . . . . Self-Inflicted Damage 10 | . 10 . . . . . . . . . . . . . . . . . . . Shots 1 | . 1 . . . . . . . . . . . . . . . . . . . Rammed . | . . . . . . . . . . . . . . . . . . . . . Targets Rammed 2 | . . . . 1 1 . . . . . . . . . . . . . . . Kicked 2 | . . . . 1 1 . . . . . . . . . . . . . . . Crushed . | . . . . . . . . . . . . . . . . . . . . . Highest Temperature 438 | . 380 120 . . 300 266 87 96 41 4 438 68 4 100 267 20 150 289 295 210 Average Temperature 45 | . 134 51 . . 34 42 26 16 7 2 80 12 3 34 55 11 36 64 51 71 Received Heat Transfer 579 | . 315 . . . 162 21 . 36 9 . . . . . 9 . 9 . 9 9 Effects 4 | . 3 . . . . . . . . . . . . . . . . 1 . . Shutdowns 1 | . 1 . . . . . . . . . . . . . . . . . . . Energy Bleed 2 | . 1 . . . . . . . . . . . . . . . . 1 . . Matter Decay 1 | . 1 . . . . . . . . . . . . . . . . . . . Siege Activations . | . . . . . . . . . . . . . . . . . . . . . Robots Corrupted . | . . . . . . . . . . . . . . . . . . . . . Combat Hostiles . | . . . . . . . . . . . . . . . . . . . . . Parts Fried 17 | . 1 . . . . 1 . 6 7 . . . . . . . . 2 . . Impact Corruptions 27 | . . . . . . 3 . 8 10 . . . . . . . . 6 . . Robots Melted 1 | . . . . . . . . . . . . . . . . . 1 . . . Combat Hostiles . | . . . . . . . . . . . . . . . . . . . . . Parts Melted 12 | 1 1 . . . 7 . . . . . . . . . . . 2 1 . . Heat Transferred 4801 | 325 660 37 . . 3396 . . . . . . . . . . . 50 333 . . Parts Sabotaged . | . . . . . . . . . . . . . . . . . . . . . Parts Stolen . | . . . . . . . . . . . . . . . . . . . . . Parts Stripped . | . . . . . . . . . . . . . . . . . . . . . Power Chain Reactions 1 | . 1 . . . . . . . . . . . . . . . . . . . Alert | -11 -10 -10 -10 -9 -8 -7 -7 -7 -6 -6 -6 -5 -5 -5 -4 -4 -4 -3 -2 -1 ------- Run | Yrd Mat Min Exi Min Mat Fac Was Fac Fac Was Fac Fac Was Fac Fac Was Fac Res Res Acc Peak Influence 436 | 10 312 149 . . 335 327 114 417 241 41 218 27 74 105 192 87 296 273 436 162 Initial 151 | . 6 105 . . . 151 114 79 70 11 28 1 14 51 51 72 60 22 75 43 Average 112 | 6 147 104 . . 88 218 114 156 111 32 96 18 30 79 109 73 120 118 188 79 Maximum Alert Level 2 | . 1 . . . 1 1 . 2 1 . 1 . . . . . 1 1 2 . Low Security (%) 85 | 100 74 100 . 100 95 35 100 71 84 100 96 100 100 100 100 100 91 85 53 100 Level 1 13 | . 25 . . . 4 64 . 23 15 . 3 . . . . . 8 14 32 . Level 2 . | . . . . . . . . 5 . . . . . . . . . . 13 . Level 3 . | . . . . . . . . . . . . . . . . . . . . . Level 4 . | . . . . . . . . . . . . . . . . . . . . . Level 5 . | . . . . . . . . . . . . . . . . . . . . . High Security . | . . . . . . . . . . . . . . . . . . . . . Max Security . | . . . . . . . . . . . . . . . . . . . . . Squads Dispatched 49 | . 7 . . . 2 4 . 8 3 . 3 1 . . 3 . 8 4 1 5 Investigation 30 | . 4 . . . 1 3 . 4 2 . 3 1 . . 1 . 4 2 1 4 Extermination 6 | . . . . . . 1 . 1 1 . . . . . . . 1 1 . 1 Reinforcement 13 | . 3 . . . 1 . . 3 . . . . . . 2 . 3 1 . . Assault . | . . . . . . . . . . . . . . . . . . . . . Garrison . | . . . . . . . . . . . . . . . . . . . . . Intercept . | . . . . . . . . . . . . . . . . . . . . . Searches Triggered 1 | . . . . . . . . . . . . . . . . . . . 1 . Construction Impeded 1 | . . . . . . . . . . . . . . . 1 . . . . . Haulers Reinforced 1 | . . . . . . . . 1 . . . . . . . . . . . . Active Scanning Responses . | . . . . . . . . . . . . . . . . . . . . . Cargo Convoy Interrupts . | . . . . . . . . . . . . . . . . . . . . . Stealth | -11 -10 -10 -10 -9 -8 -7 -7 -7 -6 -6 -6 -5 -5 -5 -4 -4 -4 -3 -2 -1 --------- Run | Yrd Mat Min Exi Min Mat Fac Was Fac Fac Was Fac Fac Was Fac Fac Was Fac Res Res Acc Distress Signals 16 | . 1 . . 1 7 1 . . . . 1 . . . 2 . . 1 1 1 Communications Jammed 11 | . . . . . . . . . . . . . . . . . . . . 11 Distress Signals 8 | . . . . . . . . . . . . . . . . . . . . 8 Times Spotted 210 | . 22 4 . . 39 11 . 19 20 2 7 1 3 2 8 3 26 11 12 20 Peak Tracking Total 9 | . 9 3 . . 6 4 . 5 6 2 4 1 4 1 6 3 7 7 6 9 Tactical Retreats 39 | . . 1 . . 3 4 . 5 6 . 2 . . . 2 . 5 2 5 4 Traps | -11 -10 -10 -10 -9 -8 -7 -7 -7 -6 -6 -6 -5 -5 -5 -4 -4 -4 -3 -2 -1 ------- Run | Yrd Mat Min Exi Min Mat Fac Was Fac Fac Was Fac Fac Was Fac Fac Was Fac Res Res Acc Traps Triggered 23 | . 4 . . . 1 4 . 1 3 . . 1 . . 1 . 3 4 . 1 Indirectly . | . . . . . . . . . . . . . . . . . . . . . Trap Hack Attempts . | . . . . . . . . . . . . . . . . . . . . . Triggered . | . . . . . . . . . . . . . . . . . . . . . Disarmed . | . . . . . . . . . . . . . . . . . . . . . Reprogrammed . | . . . . . . . . . . . . . . . . . . . . . Reused . | . . . . . . . . . . . . . . . . . . . . . Traps Extracted . | . . . . . . . . . . . . . . . . . . . . . Installed . | . . . . . . . . . . . . . . . . . . . . . Triggered . | . . . . . . . . . . . . . . . . . . . . . Machines | -11 -10 -10 -10 -9 -8 -7 -7 -7 -6 -6 -6 -5 -5 -5 -4 -4 -4 -3 -2 -1 ---------- Run | Yrd Mat Min Exi Min Mat Fac Was Fac Fac Was Fac Fac Was Fac Fac Was Fac Res Res Acc Machines Disabled 11 | . 3 3 . . 3 . . . 2 . . . . . . . . . . . Max in Single Turn 3 | . 2 3 . . 2 . . . 1 . . . . . . . . . . . Garrison Access 15 | . . . . . 1 2 . . 2 . 2 1 . . . . 2 1 2 2 Machines Repaired . | . . . . . . . . . . . . . . . . . . . . . Machines Dismantled . | . . . . . . . . . . . . . . . . . . . . . Machines Sabotaged . | . . . . . . . . . . . . . . . . . . . . . Overloaded Fab Kills . | . . . . . . . . . . . . . . . . . . . . . Hacking | -11 -10 -10 -10 -9 -8 -7 -7 -7 -6 -6 -6 -5 -5 -5 -4 -4 -4 -3 -2 -1 --------- Run | Yrd Mat Min Exi Min Mat Fac Was Fac Fac Was Fac Fac Was Fac Fac Was Fac Res Res Acc Machines Accessed 144 | . 9 . 2 . 6 19 . 13 12 . 14 5 . 3 3 . 21 13 12 12 Terminals 82 | . 6 . . . 5 9 . 9 7 . 6 3 . 2 2 . 10 8 7 8 Fabricators 28 | . . . . . . 4 . 4 2 . 4 1 . . 1 . 6 3 1 2 Repair Stations 10 | . 1 . . . . 1 . . 1 . 1 . . 1 . . 3 1 1 . Recycling Units 4 | . 2 . . . . 1 . . . . 1 . . . . . . . . . Scanalyzers 3 | . . . . . . 2 . . . . . . . . . . . . 1 . Garrison Access 15 | . . . . . 1 2 . . 2 . 2 1 . . . . 2 1 2 2 Total Hacks 556 | . 32 . 5 . 15 70 . 48 42 . 57 21 . 15 13 . 95 58 45 40 Successful 382 | . 19 . 5 . 8 37 . 28 23 . 39 18 . 8 7 . 77 45 37 31 Failed 171 | . 13 . . . 7 33 . 19 18 . 17 3 . 7 6 . 18 13 8 9 Catastrophic 16 | . . . . . 1 4 . 2 2 . . . . 1 2 . 2 2 . . Database Lockouts 3 | . . . . . . . . 1 1 . 1 . . . . . . . . . Manual 261 | . 16 . 1 . 3 34 . 23 27 . 25 11 . 8 9 . 47 28 16 13 Terminals 390 | . 24 . . . 14 41 . 34 30 . 35 17 . 11 11 . 61 46 34 32 Fabricators 95 | . . . . . . 18 . 14 6 . 15 3 . . 2 . 18 10 3 6 Repair Stations 32 | . 3 . . . . 4 . . 3 . 2 . . 4 . . 14 1 1 . Recycling Units 9 | . 5 . . . . 2 . . . . 2 . . . . . . . . . Scanalyzers 8 | . . . . . . 3 . . . . . . . . . . . . 5 . Garrison Access 17 | . . . . . 1 2 . . 3 . 3 1 . . . . 2 1 2 2 Terminal Hacks 210 | . 10 . 5 . 5 13 . 17 10 . 22 13 . 5 3 . 34 29 25 19 Record 20 | . . . 4 . . . . . . . . 1 . . . . 1 3 5 6 Part Schematic 23 | . 3 . . . . 2 . 1 1 . 2 . . . 1 . 9 3 1 . Robot Schematic 1 | . . . . . . . . . . . . . . . . . . . 1 . Robot Analysis 12 | . . . . . . 1 . 3 . . . 1 . 2 . . 1 1 . 3 Prototype ID Bank 20 | . 2 . . . 1 . . 3 1 . 4 . . . . . 4 . 5 . Open Door 1 | . . . . . . . . . . . . . . . . . . . . 1 Level Access Points 9 | . . . . . . . . . . . 1 2 . 1 . . 2 1 1 1 Branch Access Points 7 | . . . . . 1 1 . 1 . . 1 1 . . . . 2 . . . Emergency Access Points 8 | . . . . . . 2 . 1 1 . 1 1 . . . . 1 1 . . Machine Index 9 | . . . . . . . . . 1 . 1 1 . 1 1 . 1 1 1 1 Terminal Index 5 | . 1 . . . . 1 . 1 . . . . . . . . . 1 . 1 Fabricator Index 3 | . . . . . . 1 . 1 . . . . . . . . . 1 . . Repair Station Index 3 | . 1 . . . . . . . . . . . . . . . . 1 . 1 Scanalyzer Index 1 | . . . . . . . . . . . . . . . . . . 1 . . Garrison Index 1 | . . . . . . . . . . . . . . . . . . 1 . . Alert Level 3 | . . . . . . . . . . . 2 . . . . . . . 1 . Unreport Threat 23 | . . . . . 1 . . 3 4 . 3 . . . . . 4 3 3 2 Locate Traps 15 | . . . . . . 1 . 1 1 . 2 1 . . . . 1 3 3 2 Dispatch Records 1 | . . . . . . . . . . . . 1 . . . . . . . . Security Status 1 | . . . . . . . . . . . . . . . . . 1 . . . Transport Status 1 | . . . . . . . . . . . 1 . . . . . . . . . Investigation Status 1 | . . . . . . . . . . . 1 . . . . . . . . . Recall Investigation 6 | . . . . . . . . . . . 2 . . . . . . 1 2 1 Recall Extermination 2 | . . . . . . 1 . . . . . . . . . . . 1 . . Recall Assault 1 | . . . . . . . . . . . . . . . . . . . 1 . Hauler Manifests 4 | . 1 . . . . . . . . . 1 1 . . . . . 1 . . Registered Components 6 | . 1 . . . 1 1 . . . . . 1 . . . . . 1 1 . Registered Prototypes 3 | . . . . . . 1 . . 1 . . . . . . . . 1 . . Zone Layout 19 | . 1 . . . 1 1 . 2 . . . 2 . 1 1 . 7 3 . . Derelict Proto ID Bank 1 | . . . 1 . . . . . . . . . . . . . . . . . Fabricator Hacks 51 | . . . . . . 8 . 6 4 . 7 2 . . 1 . 11 6 2 4 Load Schematic 30 | . . . . . . 5 . 4 2 . 4 1 . . 1 . 7 3 1 2 Build 21 | . . . . . . 3 . 2 2 . 3 1 . . . . 4 3 1 2 Repair Station Hacks 22 | . 1 . . . . 2 . . 2 . 1 . . 2 . . 12 1 1 . Scan Component 9 | . 1 . . . . 1 . . 1 . . . . . . . 5 . 1 . Repair 7 | . . . . . . 1 . . 1 . . . . . . . 5 . . . Refit 6 | . . . . . . . . . . . 1 . . 2 . . 2 1 . . Recycling Unit Hacks 4 | . 1 . . . . 1 . . . . 2 . . . . . . . . . Retrieve Components 4 | . 1 . . . . 1 . . . . 2 . . . . . . . . . Scanalyzer 6 | . . . . . . 2 . . . . . . . . . . . . 4 . Insert Component 3 | . . . . . . 1 . . . . . . . . . . . . 2 . Analyze 3 | . . . . . . 1 . . . . . . . . . . . . 2 . Garrison Access Hacks 15 | . . . . . 1 2 . . 2 . 2 1 . . . . 2 1 2 2 Seal Access 15 | . . . . . 1 2 . . 2 . 2 1 . . . . 2 1 2 2 Unauthorized Hacks 73 | . 7 . . . 2 9 . 5 5 . 5 2 . 1 3 . 17 8 3 6 Terminals 46 | . 5 . . . 2 6 . 2 3 . 2 1 . 1 2 . 11 5 2 4 Track 5 | . . . . . . . . . . . 1 . . . . . 2 1 . 1 Assimilate 5 | . . . . . . 1 . . . . . . . . 1 . 2 1 . . Botnet 31 | . 5 . . . 2 4 . 2 2 . 1 1 . 1 1 . 5 3 2 2 Operators 5 | . . . . . . 1 . . 1 . . . . . . . 2 . . 1 Fabricators 25 | . . . . . . 3 . 3 2 . 3 1 . . 1 . 6 3 1 2 Prioritize 17 | . . . . . . 1 . 2 2 . 2 1 . . . . 3 3 1 2 Recompile 8 | . . . . . . 2 . 1 . . 1 . . . 1 . 3 . . . Repair Stations . | . . . . . . . . . . . . . . . . . . . . . Recycling Units 2 | . 2 . . . . . . . . . . . . . . . . . . . Tunnel 2 | . 2 . . . . . . . . . . . . . . . . . . . Scanalyzers . | . . . . . . . . . . . . . . . . . . . . . Garrison Access . | . . . . . . . . . . . . . . . . . . . . . Data Cores Recovered 3 | . . . . . 1 . . . 2 . . . . . . . . . . . Used 1 | . . . . . 1 . . . . . . . . . . . . . . . Hacking Detections 98 | . 7 . . . 4 13 . 12 8 . 9 3 . 3 2 . 11 10 8 8 Full Trace Events 18 | . 1 . . . . 1 . 3 2 . 2 1 . . . . 1 2 1 4 Feedback Events 1 | . . . . . . . . . . . . . . . . . . . . 1 Corruption 1 | . . . . . . . . . . . . . . . . . . . . 1 Feedback Blocked . | . . . . . . . . . . . . . . . . . . . . . Robot Schematics Acquired 1 | . . . . . . . . . . . . . . . . . . . 1 . Robots Built . | . . . . . . . . . . . . . . . . . . . . . Authchips . | . . . . . . . . . . . . . . . . . . . . . Time . | . . . . . . . . . . . . . . . . . . . . . Total Robot Build Rating . | . . . . . . . . . . . . . . . . . . . . . Part Schematics Acquired 25 | . 3 . . . . 3 . 1 1 . 2 . . . 1 . 9 3 2 . Parts Built 27 | . . . . . . 3 . 2 3 . 5 1 . . . . 6 3 2 2 Authchips 8 | . . . . . . 2 . . 1 . 1 . . . . . 3 1 . . Time 798 | . . . . . . 60 . 46 70 . 105 26 . . . . 233 164 32 62 Total Part Build Rating 161 | . . . . . . 9 . 10 15 . 26 6 . . . . 41 24 16 14 Parts Repaired 7 | . . . . . . 1 . . 1 . . . . . . . 5 . . . Time 155 | . . . . . . 13 . . 35 . . . . . . . 107 . . . Parts Recycled . | . . . . . . . . . . . . . . . . . . . . . Recycled Matter . | . . . . . . . . . . . . . . . . . . . . . Retrieved Matter . | . . . . . . . . . . . . . . . . . . . . . Retrieved Components 10 | . 10 . . . . . . . . . . . . . . . . . . . Parts Scanalyzed 3 | . . . . . . 1 . . . . . . . . . . . . 2 . Part Schematics Acquired 2 | . . . . . . 1 . . . . . . . . . . . . 1 . Parts Damaged . | . . . . . . . . . . . . . . . . . . . . . Bothacking | -11 -10 -10 -10 -9 -8 -7 -7 -7 -6 -6 -6 -5 -5 -5 -4 -4 -4 -3 -2 -1 ------------ Run | Yrd Mat Min Exi Min Mat Fac Was Fac Fac Was Fac Fac Was Fac Fac Was Fac Res Res Acc Used RIF Installer . | . . . . . . . . . . . . . . . . . . . . . Robots Hacked . | . . . . . . . . . . . . . . . . . . . . . Non-combat . | . . . . . . . . . . . . . . . . . . . . . Combat . | . . . . . . . . . . . . . . . . . . . . . Robot Hacks Applied . | . . . . . . . . . . . . . . . . . . . . . Relay Couplers Released . | . . . . . . . . . . . . . . . . . . . . . Fabnet Peak Effective % . | . . . . . . . . . . . . . . . . . . . . . Robots Rewired . | . . . . . . . . . . . . . . . . . . . . . Allies Hacked . | . . . . . . . . . . . . . . . . . . . . . Hacks Repelled . | . . . . . . . . . . . . . . . . . . . . . Allies | -11 -10 -10 -10 -9 -8 -7 -7 -7 -6 -6 -6 -5 -5 -5 -4 -4 -4 -3 -2 -1 -------- Run | Yrd Mat Min Exi Min Mat Fac Was Fac Fac Was Fac Fac Was Fac Fac Was Fac Res Res Acc Total Allies 10 | . . 3 . . . 1 1 . . . . . . . 1 . . 4 . . Largest Group 3 | . . 3 2 2 2 1 1 1 . . . . . . 1 . . 3 . . Highest-Rated Group 138 | . . 40 32 32 32 26 26 26 . . . . . . 26 . . 138 . . Highest-Rated Ally 46 | . . 16 16 16 16 26 26 26 . . . . . . 26 . . 46 . . Total Orders . | . . . . . . . . . . . . . . . . . . . . . Ally Attacks 34 | . . 6 . . 11 . . . . . . . . . . . . 17 . . Total Damage 543 | . . 55 . . 146 . . . . . . . . . . . . 342 . . Kills 7 | . . 1 . . 2 . . . . . . . . . . . . 4 . . Allies Corrupted . | . . . . . . . . . . . . . . . . . . . . . Allies Melted . | . . . . . . . . . . . . . . . . . . . . . Intel | -11 -10 -10 -10 -9 -8 -7 -7 -7 -6 -6 -6 -5 -5 -5 -4 -4 -4 -3 -2 -1 ------- Run | Yrd Mat Min Exi Min Mat Fac Was Fac Fac Was Fac Fac Was Fac Fac Was Fac Res Res Acc Robot Analysis Total 12 | . . . . . . 1 . 3 . . . 1 . 2 . . 1 1 . 3 Derelict Logs Recovered 3 | . . 1 . 2 . . . . . . . . . . . . . . . . Drone Launches . | . . . . . . . . . . . . . . . . . . . . . Drone Recoveries . | . . . . . . . . . . . . . . . . . . . . . Exploration | -11 -10 -10 -10 -9 -8 -7 -7 -7 -6 -6 -6 -5 -5 -5 -4 -4 -4 -3 -2 -1 ------------- Run | Yrd Mat Min Exi Min Mat Fac Was Fac Fac Was Fac Fac Was Fac Fac Was Fac Res Res Acc Turns Passed 10513 | 69 1188 833 581 701 1808 710 93 767 478 45 500 109 10 78 148 10 837 682 316 550 Spaces Moved 18415 | 21 778 608 498 393 1070 1734 315 2063 1557 127 1364 402 64 304 520 67 2349 1899 961 1321 Core . | . . . . . . . . . . . . . . . . . . . . . Treads 131 | . 131 . . . . . . . . . . . . . . . . . . . Legs 1659 | 16 14 . 166 393 1070 . . . . . . . . . . . . . . . Wheels 1578 | 5 633 608 332 . . . . . . . . . . . . . . . . . Hover . | . . . . . . . . . . . . . . . . . . . . . Flight 15047 | . . . . . . 1734 315 2063 1557 127 1364 402 64 304 520 67 2349 1899 961 1321 Fastest Speed 5 | 95 95 125 90 90 90 23 23 17 23 21 18 15 15 15 5 15 6 15 5 6 Average Speed 36 | 114 124 125 113 90 108 24 23 22 23 22 18 15 15 15 14 15 15 15 16 17 Slowest Speed 260 | 120 260 125 125 90 115 94 23 23 24 23 21 15 15 15 15 15 21 15 75 18 Overloaded Moves 58 | . . . . . . . . 4 . . . . . . 12 . 3 . 19 20 Propulsion Burnouts . | . . . . . . . . . . . . . . . . . . . . . Robots Hopped 77 | . . . . . . 7 . 3 5 . 9 . . 1 3 . 24 14 4 7 Cave-ins Triggered 2 | . . . . . . . . . . . . . . . . . . . . 2 Exploration Rate (%) 53 | 3 97 97 91 71 65 53 95 52 44 69 35 11 69 11 15 85 50 50 27 39 Regions Visited 20 Branch Regions 3 Pre-discovered Areas 5 | . 2 1 1 1 . . . . . . . . . . . . . . . . Known Exits Taken 5 | . . . . . . . . . . . 1 . . 1 . . 1 1 1 . Unknown Exits Taken 7 | 1 1 1 1 1 1 . . 1 . . . . . . . . . . . . Scrap Searched 4 | . . 3 . 1 . . . . . . . . . . . . . . . . Spaces Dug 267 | . . . . . 16 15 . 37 11 . 12 9 . 4 13 . 28 51 30 41 Terrain Destroyed 378 | . 13 15 . . 55 31 . 37 13 . 12 11 . 7 20 . 29 56 32 47 Melee 147 | . . . . . 11 11 . 34 8 . 11 3 . . . . 9 11 26 23 Projectile 151 | . . 1 . . 1 10 . 3 5 . 1 8 . 7 20 . 20 45 6 24 AOE 80 | . 13 14 . . 43 10 . . . . . . . . . . . . . . Terrain Rammed . | . . . . . . . . . . . . . . . . . . . . . Walls Destroyed . | . . . . . . . . . . . . . . . . . . . . . Machines Disabled . | . . . . . . . . . . . . . . . . . . . . . Actions | -11 -10 -10 -10 -9 -8 -7 -7 -7 -6 -6 -6 -5 -5 -5 -4 -4 -4 -3 -2 -1 --------- Run | Yrd Mat Min Exi Min Mat Fac Was Fac Fac Was Fac Fac Was Fac Fac Was Fac Res Res Acc Total 21362 | 48 920 672 515 738 1572 1962 334 2259 1615 142 1566 436 63 329 568 66 2740 2205 1054 1558 Wait 1928 | 8 33 56 6 338 345 105 10 117 10 6 146 10 . 14 25 . 313 189 26 171 Move 18245 | 20 777 607 497 392 1069 1720 314 2056 1547 126 1345 402 63 301 514 66 2302 1871 952 1304 Hop 74 | . . . . . . 7 . 3 5 . 9 . . 1 3 . 22 13 4 7 Pick Up 93 | . 20 1 1 4 19 15 . 3 4 1 6 1 . . 1 . 6 4 4 3 Fast Attach 123 | 1 6 . 3 . 12 9 5 3 3 3 11 5 . 1 2 . 20 20 10 9 Attach 39 | . 2 . . . 6 14 . . 4 1 2 1 . . 1 . 4 1 1 2 Detach 17 | . 1 . . . 5 3 . . . . 2 1 . 1 1 . 2 1 . . Swap 91 | 4 15 2 2 3 17 12 . 5 8 1 4 1 . . . . 5 4 6 2 Drop 173 | . 17 1 6 . 28 22 5 6 3 4 22 4 . 4 1 . 16 18 12 4 Fire 307 | 15 49 5 . . 57 24 . 4 11 . 1 8 . 7 20 . 22 53 6 25 Melee 196 | . . . . . 13 13 . 44 20 . 18 3 . . . . 10 13 33 29 Ram . | . . . . . . . . . . . . . . . . . . . . . Kick 2 | . . . . 1 1 . . . . . . . . . . . . . . . Crush . | . . . . . . . . . . . . . . . . . . . . . Escape Stasis 74 | . . . . . . 18 . 18 . . . . . . . . 18 18 . 2 Rewire . | . . . . . . . . . . . . . . . . . . . . . Trap . | . . . . . . . . . . . . . . . . . . . . . Miscellaneous . | . . . . . . . . . . . . . . . . . . . . . Route ------- -11/Scrapyard -10/Materials (discovered 5 exits: [*Mat x3] / [*Min x2]) -10/Mines (discovered 3 exits: [*Mat x2] / *Exi) -10/Exiles (discovered 2 exits: [*Min x2]) -9/Mines (discovered 2 exits: *Mat x2) -8/Materials -7/Factory (discovered 5 exits: *Fac x2 / *Sto / *Low x2) -7/Waste -7/Factory (discovered 6 exits: *Fac x2 / *Sto x2 / *Low x2) -6/Factory (discovered 2 exits: *Fac x2) -6/Waste -6/Factory (discovered 6 exits: *Fac x4 / Low x2) -5/Factory (discovered 8 exits: *Fac x4 / Upp x2 / Ext x2) -5/Waste -5/Factory (discovered 4 exits: *Fac x4) -4/Factory -4/Waste -4/Factory (discovered 6 exits: *Res x4 / *Upp x2) -3/Research (discovered 5 exits: *Res x3 / [*Arm] / [*Tes]) -2/Research (discovered 3 exits: *Acc x3) -1/Access (discovered 2 exits: *Sur / [Com]) To Epsilon Eridani History --------- Turn | Location | Event 27 | -11/Scrapyard | Discovered new exit (range 3) 70 | -11/Scrapyard | Entered Materials 317 | -10/Materials | Build established: Mutant 451 | -10/Materials | Discovered new exit (range 9) 647 | -10/Materials | Discovered new exit (range 16) 719 | -10/Materials | Discovered new exit (range 16) 806 | -10/Materials | Discovered new exit (range 13) 912 | -10/Materials | Discovered new exit (range 16) 1258 | -10/Materials | Entered Mines 1294 | -10/Mines | Learned location of Storage (-7) 1308 | -10/Mines | Deemed a non-threat by the Exiles lab entrance 1310 | -10/Mines | Discovered new exit (range 5) 1574 | -10/Mines | Discovered new exit (range 11) 1601 | -10/Mines | Assisted by bots powering up and referring to "LRC-V3" 1718 | -10/Mines | Received a Rocket Launcher from a helpful Derelict 1771 | -10/Mines | Core integrity fell below 50% 1811 | -10/Mines | Learned Materials garrison access intel 1875 | -10/Mines | Discovered new exit (range 15) 2091 | -10/Mines | Entered Exiles 2091 | -10/Exiles | Accompanied by 2 allies 2108 | -10/Exiles | Discovered new exit (range 15) 2123 | -10/Exiles | Met 8R-AWN 2143 | -10/Exiles | Met EX-HEX 2201 | -10/Exiles | Met EX-DEC 2227 | -10/Exiles | Visited The Gauntlet 2389 | -10/Exiles | Learned location of Zion (-6) 2420 | -10/Exiles | Met EX-BIN 2453 | -10/Exiles | Aligned with FarCom system 2454 | -10/Exiles | Given EX-Vault access code 2490 | -10/Exiles | Opened EX-Vault 2502 | -10/Exiles | Found PSU Rigger 2509 | -10/Exiles | Found Potential Leg 2513 | -10/Exiles | Found Potential Leg 2534 | -10/Exiles | Warned to stay clear of 0b10 Research branches 2541 | -10/Exiles | Exiles lab attacked by MAIN.C 2627 | -10/Exiles | Discovered new exit (range 12) 2672 | -10/Exiles | Left Exiles lab with Potential Leg 2672 | -10/Exiles | Entered Mines 2672 | -9/Mines | Accompanied by 2 allies 2686 | -9/Mines | Assembled infested the area 3143 | -9/Mines | Learned 2 Materials zone layouts 3143 | -9/Mines | Discovered new exit (range 13) 3237 | -9/Mines | Discovered new exit (range 4) 3373 | -9/Mines | Entered Materials 3373 | -8/Materials | Accompanied by 2 allies 3373 | -8/Materials | Evolved 4 slots: Propulsion x2, Utility x2 3375 | -8/Materials | Loaded intel: 1 garrison access location 4970 | -8/Materials | Discovered new exit (range 14) 5181 | -8/Materials | Entered Factory 5181 | -7/Factory | Evolved 2 slots: Propulsion x1, Utility x1 5298 | -7/Factory | Discovered new exit (range 12) 5299 | -7/Factory | Identified exit to Storage 5299 | -7/Factory | Identified exit to Lower Caves 5475 | -7/Factory | Build established: Hacker-Sprinter 5603 | -7/Factory | Repaired Lgt. Armor Plating 5644 | -7/Factory | Fabricated Hacking Suite (x1) 5663 | -7/Factory | Fabricated Hacking Suite (x1) 5813 | -7/Factory | Discovered new exit (range 5) 5828 | -7/Factory | Fabricated Hacking Suite (x1) 5855 | -7/Factory | Discovered new exit (range 9) 5891 | -7/Factory | Manually triggered Chute Trap 5891 | -7/Factory | Sucked down chute 5891 | -7/Factory | Entered Waste 5891 | -7/Waste | The area was eerily silent 5891 | -7/Waste | Met up with 1 ally sucked down the chute earlier 5939 | -7/Waste | Discovered new exit (range 15) 5984 | -7/Waste | Entered Factory 5984 | -7/Factory | Accompanied by 1 ally 6100 | -7/Factory | Discovered exit to Lower Caves (range 16) 6151 | -7/Factory | Fabricated Imp. Hacking Suite (x1) 6202 | -7/Factory | Discovered new exit (range 10) 6204 | -7/Factory | Discovered exit to Storage (range 15) 6301 | -7/Factory | Fabricated Imp. Hacking Suite (x1) 6428 | -7/Factory | Central database locked down 6592 | -7/Factory | Discovered new exit (range 16) 6751 | -7/Factory | Entered another Factory area 6751 | -6/Factory | Evolved 2 slots: Utility x2 6909 | -6/Factory | Repaired Imp. Cesium-ion Thruster 6944 | -6/Factory | Discovered new exit (range 15) 6954 | -6/Factory | Discovered new exit (range 16) 7032 | -6/Factory | Fabricated Imp. System Shield (x1) 7062 | -6/Factory | Central database locked down 7162 | -6/Factory | Fabricated Imp. Surge Thruster (x2) 7229 | -6/Factory | Manually triggered Chute Trap 7229 | -6/Factory | Sucked down chute 7229 | -6/Factory | Entered Waste 7233 | -6/Waste | Spotted C-40 Crusher 7236 | -6/Waste | Spotted C-40 Crusher 7247 | -6/Waste | Spotted C-40 Crusher 7247 | -6/Waste | Spotted C-40 Crusher 7249 | -6/Waste | Discovered new exit (range 13) 7274 | -6/Waste | Entered Factory 7327 | -6/Factory | Identified exit to Factory 7327 | -6/Factory | Identified exit to Lower Caves 7348 | -6/Factory | Fabricated Imp. Surge Thruster (x2) 7370 | -6/Factory | Fabricated Imp. Surge Thruster (x2) 7494 | -6/Factory | Central database locked down 7765 | -6/Factory | Fabricated Adv. Hacking Suite (x1) 7774 | -6/Factory | Entered another Factory area 7774 | -5/Factory | Evolved 2 slots: Propulsion x1, Utility x1 7776 | -5/Factory | Identified exit to Factory 7776 | -5/Factory | Identified exit to Upper Caves 7776 | -5/Factory | Identified exit to Extension 7790 | -5/Factory | Found Imp. Powered Armor 7819 | -5/Factory | Fabricated Adv. Hacking Suite? 7883 | -5/Factory | Sucked down chute 7883 | -5/Factory | Entered Waste 7886 | -5/Waste | Spotted C-40 Crusher 7887 | -5/Waste | Spotted C-40 Crusher 7888 | -5/Waste | Spotted C-40 Crusher 7889 | -5/Waste | Spotted C-40 Crusher 7889 | -5/Waste | Spotted C-40 Crusher 7891 | -5/Waste | Discovered new exit (range 16) 7893 | -5/Waste | Entered Factory 7971 | -5/Factory | Entered another Factory area 7971 | -4/Factory | Evolved 2 slots: Power x1, Utility x1 8119 | -4/Factory | Manually triggered Chute Trap 8119 | -4/Factory | Sucked down chute 8119 | -4/Factory | Entered Waste 8125 | -4/Waste | Spotted C-40 Crusher 8126 | -4/Waste | Spotted C-40 Crusher 8126 | -4/Waste | Spotted C-40 Crusher 8127 | -4/Waste | Spotted C-40 Crusher 8127 | -4/Waste | Discovered new exit (range 16) 8127 | -4/Waste | Spotted C-40 Crusher 8127 | -4/Waste | Spotted C-40 Crusher 8129 | -4/Waste | Entered Factory 8133 | -4/Factory | Discovered new exit (range 12) 8133 | -4/Factory | Identified exit to Upper Caves 8285 | -4/Factory | Repaired Imp. Surge Thruster 8303 | -4/Factory | Repaired Imp. Surge Thruster 8312 | -4/Factory | Fabricated Exp. Terrain Scan Processor (x1) 8324 | -4/Factory | Discovered new exit (range 20) 8333 | -4/Factory | Build established: Wizard-Scout 8362 | -4/Factory | Identified exit to Research 8501 | -4/Factory | Fabricated Adv. Cooling System (x1) 8533 | -4/Factory | Lost 3 parts (2n1u) 8705 | -4/Factory | Fabricated Adv. Surge Thruster (x2) 8738 | -4/Factory | Fabricated Adv. Surge Thruster (x2) 8842 | -4/Factory | Repaired Imp. Surge Thruster 8868 | -4/Factory | Repaired Imp. Surge Thruster 8895 | -4/Factory | Repaired Adv. Heat Sink 8966 | -4/Factory | Entered Research 8966 | -3/Research | Evolved 2 slots: Power x1, Utility x1 8981 | -3/Research | Identified exit to Research 9100 | -3/Research | Discovered new exit (range 9) 9142 | -3/Research | Fabricated Exp. Hacking Suite? 9379 | -3/Research | Discovered new exit (range 19) 9504 | -3/Research | Fabricated Exp. Terrain Scanner (x1) 9549 | -3/Research | Spotted B-86 Titan 9618 | -3/Research | Allied Derelicts emerged from ambush trap array 9623 | -3/Research | Fabricated Cld. Q-thruster (x1) 9648 | -3/Research | Entered another Research area 9648 | -2/Research | Evolved 2 slots: Utility x2 9711 | -2/Research | Found Enh. Force Lance 9723 | -2/Research | Fabricated Q-thruster? 9822 | -2/Research | Identified exit to Access 9884 | -2/Research | Found Prototype Device 9886 | -2/Research | Found Prototype Slashing Weapon 9898 | -2/Research | Search patrols dispatched 9898 | -2/Research | Identified Nanosword 9900 | -2/Research | Identified Exp. Transmission Jammer 9903 | -2/Research | Found Gui. Micro-nuke Launcher 9964 | -2/Research | Entered Access 9964 | -1/Access | Evolved 2 slots: Utility x1, Weapon x1 9980 | -1/Access | Identified exit to Surface 10072 | -1/Access | Crushed by falling debris 10072 | -1/Access | Crushed by falling debris 10073 | -1/Access | System corruption reached 10% 10096 | -1/Access | Spotted B-99 Colossus 10103 | -1/Access | Lost 5 parts (2n3u) 10140 | -1/Access | Fabricated Exp. Terrain Scan Processor (x1) 10142 | -1/Access | Fabricated Exp. Hacking Suite? 10170 | -1/Access | Discovered new exit (range 21) 10203 | -1/Access | Build established: Wizard-Ninja 10213 | -1/Access | Spotted B-99 Colossus 10514 | *** | Escaped! Last Messages --------------- 10387_ System corrupted: Matter fused (-8). 10408_ Dropped Adv. Gravity Neutralizer. 10409_ Acquired Antimissile System. 10410_ Dropped Antimissile System. 10411_ Acquired Adv. Gravity Neutralizer. 10415_ U-05 Engineer builds a Wall. 10416_ System corrupted: Matter fused (-9). 10431_ R-10 Processor collects Antimissile System. 10436_ K-01 Serf cleans the Radio-Gravity Array. 10458_ System corrupted: Matter fused (-9). 10479_ U-05 Engineer builds a Wall. 10480_ System corrupted: Matter fused (-7). 10494_ U-05 Engineer builds a Wall. 10505_ System corrupted: Backup Power VII fused. 10509_ W-44 Eye distress signal jammed. 10512_ Connecting with Terminal... >>Open(Door) Sealed Barrier opened. 10513_ The Access Shell folds into the floor. Map ----- +----------------------------------------------------+ | ######+####################/### ############ #?? | | #### ###### # #####?##### ?# | | #### ###### # ## # ?? | | #### ###### ! """ # ## # ? #? | | #### ! ###### """ # ## # #? | | # ###### R" # ## " ## ?#? | | #### ###### """ " ## """ ## ## | | #### ###### "" # ## """ ## ## | | # ######= # ## ?" ## ## | | # # " [ # ## ## ## | | # # ########## ## ## #? | | # ! # ########## w######+##### ### | | # # ########## | | #############" p p | | ############## #################h ### | | ############## ################# ### | | ######?########## ################# #?# | | ################# #################h ### | | ###################################### ## ### | | ###################### ############### ## #?# | | ############################## ####### ## ### | | ########## """" ## ### | | ########## BB """" ## ### | | ########## BB """" ## ? ### | | """" ## ### | | """" "@ ## ? | | ? ? """" "" k ## | | ? """" ## | | ########## BB """" ## ? | | #### BB """" """ """ ## ? ? | | ####? ? ?"""" """T""" ## ? | | """ #?###################### ####### ## ? | | """ #?############################## ##?o ?? | | """ ################################ ## ? ? ? | | """ ############## ? ? ### ? ? | | ?"" ?############# ? ### ?? | | "?" ##############? "" ### ###??????? | | ? ############## """ ??## ##?????"?? | | ? ######?######? " T" ### #??????#?# | | """ ##?########### """ ""? ### ?? ??????# | | ""? ? #####?#####?## """ ""?? ### ??? ??? ?# | | ??###?##?########### ? ? ??# ?? ???? ?? | | ????#######??####### ? ?? ###??# ???? ? # | | ??????#?###?######## ? ? ??#???????? ??? | | ?????????#??##########?#?##+#######?## ??? ??? ??? | | ???????? ? ? ? ? ?? ????? ? ????? | | ??????????? ?? ? ???????? ???#??????? ? | | ?????????????+?##??#??????#+?????##?????? ???????? | | ?????????????? ??????????? ?? ???#??#??#?#??#? | | ??????????????? ???????? ?? ? ? ?#???##?# ? ?? | +----------------------------------------------------+ Best States ------------- Heat Dissipation 71 Coolant Potential 80 Energy Generation 43 Energy Capacity 500 Matter Stores 300 Matter Capacity 300 Sight Range 22 Terrain Scan Range 30 Terrain Scan Density 1010 ECM Strength 2 Jamming Range 22 Additional Mass Support 16 Corruption Block 20 Armor Coverage 150 Power Shielding 66 Propulsion Shielding 66 Utility Shielding 66 Point Defense Rating 240 Evasion (%) 67 Recoil Reduction 2 Energy Filtering 30 Particle Charging 20 Force Boost 20 Offensive Hacking 70 Defensive Hacking 36 Authchip Count 1 Item Schematics ----------------- Med. Storage Unit | -10/Materials | Hacked Hcp. Storage Unit | -10/Materials | Hacked Huge Storage Unit | -10/Materials | Hacked Hacking Suite | -7/Factory | Hacked Cld. VTOL Module | -7/Factory | Scanalyzed Imp. Hacking Suite | -7/Factory | Hacked Imp. System Shield | -7/Factory | Hacked Imp. Surge Thruster | -6/Factory | Hacked Adv. Hacking Suite | -6/Factory | Hacked Hvy. Plasma Cannon | -6/Factory | Hacked Q-thruster | -4/Factory | Hacked Adv. Terrain Scan Processor | -4/Factory | Hacked Exp. Terrain Scan Processor | -4/Factory | Hacked Adv. Cooling System | -4/Factory | Hacked Adv. Surge Thruster | -4/Factory | Hacked Exp. Hacking Suite | -4/Factory | Hacked Exp. System Shield | -4/Factory | Hacked Structural Scanner | -4/Factory | Hacked Cld. Field Propulsion Drive | -4/Factory | Hacked Adv. Transmission Jammer | -4/Factory | Hacked Cld. Impulse Thruster | -3/Research | Hacked Exp. Terrain Scanner | -3/Research | Hacked Cld. Q-thruster | -3/Research | Hacked Gravity Neutralizer | -2/Research | Scanalyzed Exp. Transmission Jammer | -2/Research | Hacked Robot Schematics ------------------ R-10 Processor | -2/Research | Hacked Fabricated ------------ Hacking Suite | x1 | -7/Factory | Authchip Hacking Suite | x1 | -7/Factory Hacking Suite | x1 | -7/Factory | Authchip Imp. Hacking Suite | x1 | -7/Factory Imp. Hacking Suite | x1 | -7/Factory Imp. System Shield | x1 | -6/Factory Imp. Surge Thruster | x2 | -6/Factory | Authchip Imp. Surge Thruster | x2 | -6/Factory Imp. Surge Thruster | x2 | -6/Factory Adv. Hacking Suite | x1 | -6/Factory | Authchip Adv. Hacking Suite | x1 | -5/Factory Exp. Terrain Scan Processor | x1 | -4/Factory | Authchip Adv. Cooling System | x1 | -4/Factory | Authchip Adv. Surge Thruster | x2 | -4/Factory | Authchip Adv. Surge Thruster | x2 | -4/Factory Exp. Hacking Suite | x1 | -3/Research | Authchip Exp. Terrain Scanner | x1 | -3/Research Cld. Q-thruster | x1 | -3/Research Q-thruster | x2 | -2/Research Exp. Terrain Scan Processor | x1 | -1/Access Exp. Hacking Suite | x1 | -1/Access Alien Tech Used ----------------- None Achievements -------------- Maximum Efficiency Supersonic Whoosh! Challenges ------------ None Game ------ Seed SpacefoldFortressAmplifier Manual? 0 Play Time 05:06:38 Cumulative 100.3 hours Start 2024.06.03 @ 11:54:49 End 2024.06.08 @ 11:56:34 Sessions 5 Manual Loads 0 Difficulty Rogue Special Mode None Game No. 49 Rogue 49 Adventurer 0 Explorer 0 Win Type 0 Total 4 Types 3/0/0/1/0/0/0/0/0 Lore% 58 Gallery% 58 Achievement% 53 Wizard Run 0 Options --------- Layout 2 ASCII 0 Keyboard 0 Movement Numpad Keybinds 0 Fullscreen 2 Font 24/Smallcaps Map View 50x44 Zoom Use 0% Tactical HUD 1 Map Filters NONE Filters NONE Steam 1 RUN: a265bf79-6b36-4b36-8b82-7859bd31ee27